[Event "Titled Tuesday Blitz June 29 2021"]
[White "AldokhinIvan"]
[Black "SIOJ"]
[WhiteElo "2482"]
[BlackElo "2284"]
[Result "1-0"]
[Round "07"]
[TimeControl "180+1"]
[Date "2021.06.29"]
[WhiteClock "0:01:37"]
[BlackClock "0:00:47"]

1. d4 {[%clk 0:03:00]}  d5 {[%clk 0:02:59]} 2. c4 {[%clk 0:03:01]}  c6 {[%clk 0:02:59]} 3. cxd5 {[%clk 0:03:01]}  cxd5 {[%clk 0:02:58]} 4. Bg5 {[%clk 0:03:01]}  Nc6 {[%clk 0:02:55]} 5. Nc3 {[%clk 0:03:01]}  f6 {[%clk 0:02:55]} 6. Bd2 {[%clk 0:03:01]}  Nxd4 {[%clk 0:02:40]} 7. e3 {[%clk 0:02:48]}  Nc6 {[%clk 0:02:39]} 8. Qh5+ {[%clk 0:02:46]}  g6 {[%clk 0:02:29]} 9. Qxd5 {[%clk 0:02:47]}  Qxd5 {[%clk 0:02:20]} 10. Nxd5 {[%clk 0:02:47]}  Kf7 {[%clk 0:02:20]} 11. Nf3 {[%clk 0:02:45]}  e5 {[%clk 0:02:19]} 12. Nc7 {[%clk 0:02:40]}  Rb8 {[%clk 0:02:18]} 13. Bc4+ {[%clk 0:02:40]}  Kg7 {[%clk 0:02:18]} 14. Ne6+ {[%clk 0:02:37]}  Bxe6 {[%clk 0:02:18]} 15. Bxe6 {[%clk 0:02:38]}  Bb4 {[%clk 0:02:13]} 16. Rc1 {[%clk 0:02:34]}  Bxd2+ {[%clk 0:02:10]} 17. Nxd2 {[%clk 0:02:33]}  Nge7 {[%clk 0:02:11]} 18. Ke2 {[%clk 0:02:32]}  Rhd8 {[%clk 0:02:10]} 19. Ne4 {[%clk 0:02:27]}  f5 {[%clk 0:02:04]} 20. Nc5 {[%clk 0:02:16]}  Rd6 {[%clk 0:01:45]} 21. Rhd1 {[%clk 0:02:08]}  Rbd8 {[%clk 0:01:45]} 22. Rxd6 {[%clk 0:02:07]}  Rxd6 {[%clk 0:01:45]} 23. Bb3 {[%clk 0:02:05]}  b6 {[%clk 0:01:43]} 24. Na6 {[%clk 0:01:51]}  Kf6 {[%clk 0:01:31]} 25. a3 {[%clk 0:01:43]}  Na5 {[%clk 0:01:06]} 26. Ba2 {[%clk 0:01:40]}  Nac6 {[%clk 0:00:52]} 27. Nc7 {[%clk 0:01:38]}  f4 {[%clk 0:00:47]} 28. Ne8+ {[%clk 0:01:37]} 1-0


[Site "https://www.chess.com"]

[Event "Titled Tuesday Blitz June 29 2021"]
[White "Aleksandar-Topalov"]
[Black "Riazantsev"]
[WhiteElo "2400"]
[BlackElo "2745"]
[Result "0-1"]
[Round "07"]
[TimeControl "180+1"]
[Date "2021.06.29"]
[WhiteClock "0:00:18"]
[BlackClock "0:00:33"]

1. b3 {[%clk 0:02:58]}  Nf6 {[%clk 0:02:58]} 2. Bb2 {[%clk 0:02:57]}  g6 {[%clk 0:02:58]} 3. Bxf6 {[%clk 0:02:57]}  exf6 {[%clk 0:02:58]} 4. c4 {[%clk 0:02:57]}  d5 {[%clk 0:02:56]} 5. cxd5 {[%clk 0:02:57]}  Qxd5 {[%clk 0:02:56]} 6. Nc3 {[%clk 0:02:57]}  Qd8 {[%clk 0:02:56]} 7. e3 {[%clk 0:02:55]}  Bd6 {[%clk 0:02:54]} 8. Nge2 {[%clk 0:02:54]}  O-O {[%clk 0:02:54]} 9. g3 {[%clk 0:02:54]}  c5 {[%clk 0:02:46]} 10. Bg2 {[%clk 0:02:54]}  Nc6 {[%clk 0:02:46]} 11. O-O {[%clk 0:02:54]}  Be6 {[%clk 0:02:39]} 12. d4 {[%clk 0:02:51]}  cxd4 {[%clk 0:02:36]} 13. exd4 {[%clk 0:02:52]}  Bd7 {[%clk 0:02:20]} 14. Nd5 {[%clk 0:02:44]}  Kg7 {[%clk 0:02:18]} 15. Qd2 {[%clk 0:02:36]}  Re8 {[%clk 0:02:16]} 16. Nef4 {[%clk 0:02:31]}  Bf5 {[%clk 0:02:14]} 17. Rfe1 {[%clk 0:02:28]}  Qd7 {[%clk 0:02:13]} 18. Rad1 {[%clk 0:02:13]}  Rad8 {[%clk 0:02:11]} 19. Rxe8 {[%clk 0:02:12]}  Rxe8 {[%clk 0:02:11]} 20. Ne3 {[%clk 0:01:59]}  Bxf4 {[%clk 0:02:03]} 21. Nxf5+ {[%clk 0:01:59]}  Qxf5 {[%clk 0:02:03]} 22. Qxf4 {[%clk 0:02:00]}  Qxf4 {[%clk 0:02:03]} 23. gxf4 {[%clk 0:02:00]}  Rd8 {[%clk 0:01:44]} 24. d5 {[%clk 0:01:40]}  Ne7 {[%clk 0:01:25]} 25. d6 {[%clk 0:01:32]}  Nc6 {[%clk 0:01:25]} 26. f5 {[%clk 0:01:23]}  Rd7 {[%clk 0:01:15]} 27. Bxc6 {[%clk 0:01:05]}  bxc6 {[%clk 0:01:14]} 28. f3 {[%clk 0:01:04]}  Kh6 {[%clk 0:01:05]} 29. f4 {[%clk 0:01:02]}  Kh5 {[%clk 0:01:02]} 30. Kf2 {[%clk 0:00:57]}  Kg4 {[%clk 0:01:01]} 31. fxg6 {[%clk 0:00:57]}  hxg6 {[%clk 0:00:59]} 32. Ke3 {[%clk 0:00:58]}  Kf5 {[%clk 0:00:59]} 33. Rc1 {[%clk 0:00:42]}  Rxd6 {[%clk 0:00:58]} 34. Rc5+ {[%clk 0:00:42]}  Kg4 {[%clk 0:00:58]} 35. Ra5 {[%clk 0:00:41]}  Re6+ {[%clk 0:00:58]} 36. Kf2 {[%clk 0:00:41]}  Re7 {[%clk 0:00:53]} 37. Ra4 {[%clk 0:00:41]}  f5 {[%clk 0:00:52]} 38. Rc4 {[%clk 0:00:40]}  Re4 {[%clk 0:00:50]} 39. Rxc6 {[%clk 0:00:35]}  Rxf4+ {[%clk 0:00:50]} 40. Kg2 {[%clk 0:00:34]}  Rd4 {[%clk 0:00:47]} 41. h3+ {[%clk 0:00:26]}  Kf4 {[%clk 0:00:46]} 42. Rc2 {[%clk 0:00:25]}  Ke3 {[%clk 0:00:44]} 43. Rc3+ {[%clk 0:00:23]}  Rd3 {[%clk 0:00:43]} 44. Rc2 {[%clk 0:00:23]}  Rd2+ {[%clk 0:00:43]} 45. Rxd2 {[%clk 0:00:23]}  Kxd2 {[%clk 0:00:43]} 46. Kf3 {[%clk 0:00:23]}  Kc3 {[%clk 0:00:42]} 47. Kf4 {[%clk 0:00:22]}  f6 {[%clk 0:00:36]} 48. h4 {[%clk 0:00:20]}  Kb2 {[%clk 0:00:35]} 49. h5 {[%clk 0:00:20]}  gxh5 {[%clk 0:00:33]} 50. Kxf5 {[%clk 0:00:18]}  Kxa2 {[%clk 0:00:33]} 0-1


[Site "https://www.chess.com"]

[Event "Titled Tuesday Blitz June 29 2021"]
[White "Alexsur1981"]
[Black "AlexPapasimakopoulos"]
[WhiteElo "2868"]
[BlackElo "2686"]
[Result "1-0"]
[Round "07"]
[TimeControl "180+1"]
[Date "2021.06.29"]
[WhiteClock "0:00:48"]
[BlackClock "0:00:13"]

1. e4 {[%clk 0:03:00]}  e6 {[%clk 0:03:00]} 2. d4 {[%clk 0:03:00]}  d5 {[%clk 0:03:00]} 3. Nd2 {[%clk 0:03:01]}  Nf6 {[%clk 0:03:00]} 4. e5 {[%clk 0:03:01]}  Nfd7 {[%clk 0:03:01]} 5. f4 {[%clk 0:03:01]}  c5 {[%clk 0:03:01]} 6. c3 {[%clk 0:03:02]}  Nc6 {[%clk 0:03:02]} 7. Ndf3 {[%clk 0:03:03]}  cxd4 {[%clk 0:03:03]} 8. cxd4 {[%clk 0:03:03]}  a5 {[%clk 0:03:04]} 9. Bd3 {[%clk 0:02:58]}  a4 {[%clk 0:03:04]} 10. a3 {[%clk 0:02:58]}  Nb6 {[%clk 0:03:02]} 11. Ne2 {[%clk 0:02:58]}  g6 {[%clk 0:03:03]} 12. O-O {[%clk 0:02:57]}  Na5 {[%clk 0:03:03]} 13. g4 {[%clk 0:02:54]}  h5 {[%clk 0:03:03]} 14. h3 {[%clk 0:02:54]}  Nb3 {[%clk 0:02:59]} 15. Rb1 {[%clk 0:02:53]}  Nc4 {[%clk 0:02:58]} 16. Kf2 {[%clk 0:02:36]}  b5 {[%clk 0:02:56]} 17. Be3 {[%clk 0:02:32]}  Be7 {[%clk 0:02:47]} 18. Rg1 {[%clk 0:02:16]}  hxg4 {[%clk 0:02:11]} 19. hxg4 {[%clk 0:02:16]}  Bb7 {[%clk 0:02:10]} 20. Rh1 {[%clk 0:02:10]}  Bh4+ {[%clk 0:01:54]} 21. Nxh4 {[%clk 0:02:10]}  Rxh4 {[%clk 0:01:55]} 22. Ng3 {[%clk 0:01:58]}  Kd7 {[%clk 0:01:48]} 23. Qe2 {[%clk 0:01:56]}  Rxh1 {[%clk 0:01:29]} 24. Rxh1 {[%clk 0:01:56]}  Qb6 {[%clk 0:01:29]} 25. Rh7 {[%clk 0:01:55]}  Ke8 {[%clk 0:01:22]} 26. Bxc4 {[%clk 0:01:30]}  dxc4 {[%clk 0:01:10]} 27. d5 {[%clk 0:01:28]}  Nc5 {[%clk 0:01:06]} 28. dxe6 {[%clk 0:01:14]}  fxe6 {[%clk 0:00:40]} 29. f5 {[%clk 0:01:09]}  Qc6 {[%clk 0:00:38]} 30. Kg1 {[%clk 0:01:09]}  Rd8 {[%clk 0:00:29]} 31. Rh8+ {[%clk 0:01:03]}  Kd7 {[%clk 0:00:24]} 32. Rxd8+ {[%clk 0:01:03]}  Kxd8 {[%clk 0:00:24]} 33. fxg6 {[%clk 0:01:04]}  Ke8 {[%clk 0:00:18]} 34. Qf2 {[%clk 0:01:00]}  Nd3 {[%clk 0:00:17]} 35. Qf7+ {[%clk 0:00:46]}  Kd8 {[%clk 0:00:17]} 36. Qf8+ {[%clk 0:00:47]}  Kc7 {[%clk 0:00:16]} 37. Qd6+ {[%clk 0:00:47]}  Qxd6 {[%clk 0:00:13]} 38. exd6+ {[%clk 0:00:48]}  Kxd6 {[%clk 0:00:13]} 39. g7 {[%clk 0:00:48]} 1-0


[Site "https://www.chess.com"]

[Event "Titled Tuesday Blitz June 29 2021"]
[White "BeanScreen"]
[Black "nocnypako"]
[WhiteElo "2680"]
[BlackElo "2535"]
[Result "0-1"]
[Round "07"]
[TimeControl "180+1"]
[Date "2021.06.29"]
[WhiteClock "0:00:01"]
[BlackClock "0:00:38"]

1. e4 {[%clk 0:03:00]}  e6 {[%clk 0:02:59]} 2. d4 {[%clk 0:03:00]}  d5 {[%clk 0:03:00]} 3. Nc3 {[%clk 0:03:00]}  Bb4 {[%clk 0:02:59]} 4. exd5 {[%clk 0:03:00]}  exd5 {[%clk 0:02:59]} 5. Bd3 {[%clk 0:03:00]}  Nf6 {[%clk 0:02:58]} 6. Nf3 {[%clk 0:03:00]}  O-O {[%clk 0:02:59]} 7. O-O {[%clk 0:03:00]}  c6 {[%clk 0:02:59]} 8. Ne5 {[%clk 0:02:55]}  Nbd7 {[%clk 0:02:56]} 9. Bg5 {[%clk 0:02:54]}  h6 {[%clk 0:02:56]} 10. Bh4 {[%clk 0:02:53]}  Be7 {[%clk 0:02:56]} 11. f4 {[%clk 0:02:28]}  c5 {[%clk 0:02:33]} 12. dxc5 {[%clk 0:02:11]}  Nxc5 {[%clk 0:01:29]} 13. Bxf6 {[%clk 0:02:10]}  Bxf6 {[%clk 0:01:29]} 14. Nxd5 {[%clk 0:02:06]}  Bxe5 {[%clk 0:01:29]} 15. fxe5 {[%clk 0:02:06]}  Be6 {[%clk 0:01:29]} 16. c4 {[%clk 0:01:51]}  Qg5 {[%clk 0:01:16]} 17. b4 {[%clk 0:01:15]}  Bxd5 {[%clk 0:01:14]} 18. cxd5 {[%clk 0:00:17]}  Qe3+ {[%clk 0:01:12]} 19. Kh1 {[%clk 0:00:17]}  Nxd3 {[%clk 0:01:12]} 20. Qc2 {[%clk 0:00:16]}  Rac8 {[%clk 0:01:07]} 21. Rf3 {[%clk 0:00:08]}  Ne1 {[%clk 0:00:54]} 22. Qxc8 {[%clk 0:00:05]}  Nxf3 {[%clk 0:00:54]} 23. Qh3 {[%clk 0:00:04]}  Qxe5 {[%clk 0:00:51]} 24. Rf1 {[%clk 0:00:04]}  Ng5 {[%clk 0:00:44]} 25. Qd3 {[%clk 0:00:04]}  Rd8 {[%clk 0:00:42]} 26. d6 {[%clk 0:00:01]}  Qxd6 {[%clk 0:00:41]} 27. Qc4 {[%clk 0:00:01]}  Qd3 {[%clk 0:00:38]} 28. Qc7 {[%clk 0:00:01]}  Qxf1# {[%clk 0:00:38]} 0-1


[Site "https://www.chess.com"]

[Event "Titled Tuesday Blitz June 29 2021"]
[White "Beca95"]
[Black "Iball95"]
[WhiteElo "2834"]
[BlackElo "2614"]
[Result "1-0"]
[Round "07"]
[TimeControl "180+1"]
[Date "2021.06.29"]
[WhiteClock "0:01:44"]
[BlackClock "0:00:01"]

1. d4 {[%clk 0:03:00]}  d5 {[%clk 0:02:59]} 2. Nf3 {[%clk 0:02:58]}  Nf6 {[%clk 0:02:59]} 3. c4 {[%clk 0:02:59]}  c6 {[%clk 0:02:59]} 4. e3 {[%clk 0:02:59]}  a6 {[%clk 0:02:59]} 5. Nc3 {[%clk 0:02:59]}  b5 {[%clk 0:02:59]} 6. b3 {[%clk 0:03:00]}  Bg4 {[%clk 0:02:59]} 7. h3 {[%clk 0:03:00]}  Bxf3 {[%clk 0:02:59]} 8. gxf3 {[%clk 0:03:01]}  Nbd7 {[%clk 0:02:48]} 9. Qc2 {[%clk 0:02:56]}  e5 {[%clk 0:02:45]} 10. c5 {[%clk 0:02:32]}  g6 {[%clk 0:02:34]} 11. f4 {[%clk 0:02:22]}  exd4 {[%clk 0:02:29]} 12. exd4 {[%clk 0:02:23]}  Bg7 {[%clk 0:02:28]} 13. Be3 {[%clk 0:02:23]}  O-O {[%clk 0:02:27]} 14. O-O-O {[%clk 0:02:22]}  Re8 {[%clk 0:02:17]} 15. f5 {[%clk 0:02:22]}  a5 {[%clk 0:02:11]} 16. fxg6 {[%clk 0:02:21]}  hxg6 {[%clk 0:02:11]} 17. h4 {[%clk 0:02:21]}  Ng4 {[%clk 0:01:37]} 18. Bg5 {[%clk 0:02:15]}  Bf6 {[%clk 0:01:25]} 19. Qd2 {[%clk 0:02:13]}  b4 {[%clk 0:01:08]} 20. Na4 {[%clk 0:02:12]}  Qe7 {[%clk 0:00:41]} 21. Bh3 {[%clk 0:02:08]}  Qe4 {[%clk 0:00:32]} 22. Rhg1 {[%clk 0:02:03]}  Bxg5 {[%clk 0:00:25]} 23. hxg5 {[%clk 0:02:03]}  f5 {[%clk 0:00:24]} 24. gxf6 {[%clk 0:02:01]}  Ndxf6 {[%clk 0:00:24]} 25. Nb6 {[%clk 0:01:59]}  Ra7 {[%clk 0:00:24]} 26. Rde1 {[%clk 0:01:58]}  Nxf2 {[%clk 0:00:04]} 27. Rxe4 {[%clk 0:01:56]}  N2xe4 {[%clk 0:00:05]} 28. Rxg6+ {[%clk 0:01:51]}  Kh8 {[%clk 0:00:03]} 29. Qf4 {[%clk 0:01:47]}  Rf8 {[%clk 0:00:03]} 30. Nd7 {[%clk 0:01:45]}  Nxd7 {[%clk 0:00:01]} 31. Qh6# {[%clk 0:01:44]} 1-0


[Site "https://www.chess.com"]

[Event "Titled Tuesday Blitz June 29 2021"]
[White "CSB7"]
[Black "ikhasu"]
[WhiteElo "2631"]
[BlackElo "2488"]
[Result "1/2-1/2"]
[Round "07"]
[TimeControl "180+1"]
[Date "2021.06.29"]
[WhiteClock "0:00:05"]
[BlackClock "0:00:05"]

1. e4 {[%clk 0:03:00]}  e5 {[%clk 0:02:59]} 2. Nf3 {[%clk 0:02:59]}  d6 {[%clk 0:03:00]} 3. d4 {[%clk 0:02:56]}  exd4 {[%clk 0:03:00]} 4. Nxd4 {[%clk 0:02:57]}  Nf6 {[%clk 0:03:00]} 5. Nc3 {[%clk 0:02:57]}  Be7 {[%clk 0:03:01]} 6. g3 {[%clk 0:02:56]}  O-O {[%clk 0:03:00]} 7. Bg2 {[%clk 0:02:56]}  Bg4 {[%clk 0:02:55]} 8. Qd3 {[%clk 0:02:52]}  Nbd7 {[%clk 0:02:53]} 9. O-O {[%clk 0:02:44]}  Ne5 {[%clk 0:02:50]} 10. Qe3 {[%clk 0:02:44]}  c5 {[%clk 0:02:46]} 11. Nf5 {[%clk 0:02:36]}  Bxf5 {[%clk 0:02:42]} 12. exf5 {[%clk 0:02:37]}  Qc8 {[%clk 0:02:40]} 13. f4 {[%clk 0:02:32]}  Nc6 {[%clk 0:02:38]} 14. Nd5 {[%clk 0:02:10]}  Nxd5 {[%clk 0:02:37]} 15. Bxd5 {[%clk 0:02:11]}  Bf6 {[%clk 0:02:37]} 16. Qd3 {[%clk 0:01:39]}  Nb4 {[%clk 0:02:33]} 17. Qf3 {[%clk 0:01:32]}  Qxf5 {[%clk 0:02:18]} 18. Bxb7 {[%clk 0:01:25]}  Rae8 {[%clk 0:02:11]} 19. c3 {[%clk 0:00:56]}  Nc2 {[%clk 0:02:08]} 20. g4 {[%clk 0:00:55]}  Qe6 {[%clk 0:01:53]} 21. Bd5 {[%clk 0:00:43]}  Qe2 {[%clk 0:01:19]} 22. Qxe2 {[%clk 0:00:36]}  Rxe2 {[%clk 0:01:18]} 23. Rb1 {[%clk 0:00:36]}  Ne3 {[%clk 0:01:18]} 24. Bxe3 {[%clk 0:00:33]}  Rxe3 {[%clk 0:01:18]} 25. g5 {[%clk 0:00:26]}  Bd8 {[%clk 0:01:17]} 26. Rfe1 {[%clk 0:00:24]}  Rfe8 {[%clk 0:01:17]} 27. Kf2 {[%clk 0:00:20]}  Rxe1 {[%clk 0:01:15]} 28. Rxe1 {[%clk 0:00:21]}  Rxe1 {[%clk 0:01:15]} 29. Kxe1 {[%clk 0:00:22]}  Kf8 {[%clk 0:01:15]} 30. Kf2 {[%clk 0:00:22]}  f6 {[%clk 0:00:56]} 31. h4 {[%clk 0:00:21]}  fxg5 {[%clk 0:00:54]} 32. fxg5 {[%clk 0:00:22]}  h6 {[%clk 0:00:54]} 33. gxh6 {[%clk 0:00:19]}  Bxh4+ {[%clk 0:00:53]} 34. Kf3 {[%clk 0:00:19]}  gxh6 {[%clk 0:00:52]} 35. Kg4 {[%clk 0:00:20]}  Bg5 {[%clk 0:00:51]} 36. Kf5 {[%clk 0:00:20]}  Ke7 {[%clk 0:00:51]} 37. b3 {[%clk 0:00:19]}  Bd2 {[%clk 0:00:48]} 38. c4 {[%clk 0:00:19]}  h5 {[%clk 0:00:48]} 39. Bf3 {[%clk 0:00:14]}  h4 {[%clk 0:00:48]} 40. Bg4 {[%clk 0:00:14]}  Bc3 {[%clk 0:00:42]} 41. Bh3 {[%clk 0:00:13]}  Be5 {[%clk 0:00:42]} 42. Bg4 {[%clk 0:00:14]}  Bg3 {[%clk 0:00:40]} 43. Bh3 {[%clk 0:00:14]}  Kd7 {[%clk 0:00:41]} 44. Ke4+ {[%clk 0:00:10]}  Kc6 {[%clk 0:00:41]} 45. Kd3 {[%clk 0:00:10]}  Kb6 {[%clk 0:00:40]} 46. a3 {[%clk 0:00:08]}  Be5 {[%clk 0:00:39]} 47. Kc2 {[%clk 0:00:08]}  Kc7 {[%clk 0:00:35]} 48. Kd3 {[%clk 0:00:05]}  Kd8 {[%clk 0:00:35]} 49. Ke4 {[%clk 0:00:05]}  Bb2 {[%clk 0:00:34]} 50. a4 {[%clk 0:00:05]}  Kc7 {[%clk 0:00:35]} 51. Kd3 {[%clk 0:00:05]}  Kb6 {[%clk 0:00:34]} 52. Ke4 {[%clk 0:00:04]}  Ka5 {[%clk 0:00:34]} 53. Kd3 {[%clk 0:00:04]}  Kb4 {[%clk 0:00:34]} 54. Kc2 {[%clk 0:00:05]}  Be5 {[%clk 0:00:34]} 55. Bg4 {[%clk 0:00:05]}  d5 {[%clk 0:00:15]} 56. cxd5 {[%clk 0:00:05]}  c4 {[%clk 0:00:16]} 57. bxc4 {[%clk 0:00:04]}  Kxa4 {[%clk 0:00:16]} 58. c5 {[%clk 0:00:03]}  Kb5 {[%clk 0:00:16]} 59. c6 {[%clk 0:00:03]}  Kb6 {[%clk 0:00:16]} 60. Kb3 {[%clk 0:00:02]}  Kc5 {[%clk 0:00:15]} 61. Bf3 {[%clk 0:00:02]}  Kd6 {[%clk 0:00:13]} 62. Ka4 {[%clk 0:00:02]}  Bc3 {[%clk 0:00:12]} 63. Kb5 {[%clk 0:00:02]}  Kc7 {[%clk 0:00:05]} 64. Ka6 {[%clk 0:00:02]}  Bd4 {[%clk 0:00:05]} 65. Bh1 {[%clk 0:00:02]}  h3 {[%clk 0:00:04]} 66. Bf3 {[%clk 0:00:02]}  h2 {[%clk 0:00:04]} 67. Bh1 {[%clk 0:00:03]}  Bc5 {[%clk 0:00:05]} 68. Kb5 {[%clk 0:00:03]}  Bb6 {[%clk 0:00:05]} 69. Ka6 {[%clk 0:00:03]}  Bd4 {[%clk 0:00:05]} 70. Kb5 {[%clk 0:00:04]}  Be3 {[%clk 0:00:05]} 71. Ka6 {[%clk 0:00:04]}  Bf2 {[%clk 0:00:05]} 72. Kb5 {[%clk 0:00:04]}  Be3 {[%clk 0:00:06]} 73. Ka6 {[%clk 0:00:05]}  Bf2 {[%clk 0:00:06]} 74. Kb5 {[%clk 0:00:05]}  Bb6 {[%clk 0:00:06]} 75. Ka6 {[%clk 0:00:05]}  Bd4 {[%clk 0:00:05]} 76. d6+ {[%clk 0:00:04]}  Kxd6 {[%clk 0:00:03]} 77. Kb7 {[%clk 0:00:04]}  Bb6 {[%clk 0:00:03]} 78. c7 {[%clk 0:00:05]}  Bxc7 {[%clk 0:00:03]} 79. Kxa7 {[%clk 0:00:06]}  Bd8 {[%clk 0:00:03]} 80. Ka6 {[%clk 0:00:06]}  Ke5 {[%clk 0:00:03]} 81. Kb5 {[%clk 0:00:07]}  Kf4 {[%clk 0:00:04]} 82. Kc4 {[%clk 0:00:07]}  Ke3 {[%clk 0:00:04]} 83. Kd5 {[%clk 0:00:06]}  Kf2 {[%clk 0:00:05]} 84. Kc4 {[%clk 0:00:06]}  Kg1 {[%clk 0:00:06]} 85. Ba8 {[%clk 0:00:06]}  h1=Q {[%clk 0:00:05]} 86. Bxh1 {[%clk 0:00:05]} 1/2-1/2


[Site "https://www.chess.com"]

[Event "Titled Tuesday Blitz June 29 2021"]
[White "Caracternin123"]
[Black "1977Ivan"]
[WhiteElo "2596"]
[BlackElo "2720"]
[Result "0-1"]
[Round "07"]
[TimeControl "180+1"]
[Date "2021.06.29"]
[WhiteClock "0:00:03"]
[BlackClock "0:00:29"]

1. d4 {[%clk 0:03:00]}  Nf6 {[%clk 0:02:59]} 2. Nf3 {[%clk 0:03:01]}  e6 {[%clk 0:02:57]} 3. g3 {[%clk 0:03:01]}  c5 {[%clk 0:02:55]} 4. Bg2 {[%clk 0:03:02]}  cxd4 {[%clk 0:02:54]} 5. O-O {[%clk 0:03:03]}  Qc7 {[%clk 0:02:53]} 6. Nxd4 {[%clk 0:03:03]}  a6 {[%clk 0:02:53]} 7. b3 {[%clk 0:02:56]}  d5 {[%clk 0:02:52]} 8. Bb2 {[%clk 0:02:56]}  Be7 {[%clk 0:02:44]} 9. Nd2 {[%clk 0:02:55]}  e5 {[%clk 0:02:41]} 10. N4f3 {[%clk 0:02:53]}  Nc6 {[%clk 0:02:42]} 11. e3 {[%clk 0:02:40]}  Bg4 {[%clk 0:02:32]} 12. h3 {[%clk 0:02:39]}  Bh5 {[%clk 0:02:32]} 13. g4 {[%clk 0:02:40]}  Bg6 {[%clk 0:02:32]} 14. c4 {[%clk 0:02:40]}  e4 {[%clk 0:02:26]} 15. Nd4 {[%clk 0:02:29]}  Ne5 {[%clk 0:02:22]} 16. g5 {[%clk 0:02:14]}  Nfd7 {[%clk 0:02:14]} 17. cxd5 {[%clk 0:02:03]}  Nd3 {[%clk 0:02:14]} 18. Rb1 {[%clk 0:01:49]}  N7c5 {[%clk 0:02:14]} 19. b4 {[%clk 0:01:42]}  Nxb4 {[%clk 0:02:08]} 20. Ba3 {[%clk 0:01:32]}  Nbd3 {[%clk 0:01:54]} 21. Nxe4 {[%clk 0:01:20]}  Nxe4 {[%clk 0:01:51]} 22. Qxd3 {[%clk 0:00:56]}  Nc3 {[%clk 0:01:42]} 23. e4 {[%clk 0:00:56]}  Nxb1 {[%clk 0:01:30]} 24. d6 {[%clk 0:00:37]}  Bxd6 {[%clk 0:01:30]} 25. Nb5 {[%clk 0:00:38]}  axb5 {[%clk 0:01:29]} 26. Bxd6 {[%clk 0:00:38]}  Qc4 {[%clk 0:01:27]} 27. Qxc4 {[%clk 0:00:38]}  bxc4 {[%clk 0:01:26]} 28. Rxb1 {[%clk 0:00:39]}  Kd7 {[%clk 0:01:20]} 29. Rd1 {[%clk 0:00:38]}  b5 {[%clk 0:01:18]} 30. a3 {[%clk 0:00:27]}  Rhd8 {[%clk 0:01:08]} 31. e5 {[%clk 0:00:26]}  Bd3 {[%clk 0:01:03]} 32. Bxa8 {[%clk 0:00:17]}  Rxa8 {[%clk 0:01:04]} 33. f4 {[%clk 0:00:11]}  Ke6 {[%clk 0:01:04]} 34. Kf2 {[%clk 0:00:12]}  Kf5 {[%clk 0:01:04]} 35. Ke3 {[%clk 0:00:12]}  Rh8 {[%clk 0:00:55]} 36. Rd2 {[%clk 0:00:12]}  h6 {[%clk 0:00:55]} 37. Rg2 {[%clk 0:00:12]}  g6 {[%clk 0:00:51]} 38. h4 {[%clk 0:00:08]}  hxg5 {[%clk 0:00:50]} 39. Rxg5+ {[%clk 0:00:08]}  Ke6 {[%clk 0:00:51]} 40. Rg4 {[%clk 0:00:06]}  Bf5 {[%clk 0:00:50]} 41. Rg2 {[%clk 0:00:06]}  Rxh4 {[%clk 0:00:50]} 42. Rb2 {[%clk 0:00:07]}  Rh3+ {[%clk 0:00:50]} 43. Kd4 {[%clk 0:00:07]}  c3 {[%clk 0:00:35]} 44. Rxb5 {[%clk 0:00:03]}  c2 {[%clk 0:00:36]} 45. Rc5 {[%clk 0:00:03]}  Rh1 {[%clk 0:00:35]} 46. Rc7 {[%clk 0:00:04]}  Rd1+ {[%clk 0:00:29]} 47. Ke3 {[%clk 0:00:04]}  c1=Q+ {[%clk 0:00:29]} 48. Rxc1 {[%clk 0:00:01]}  Rxc1 {[%clk 0:00:30]} 49. a4 {[%clk 0:00:01]}  Ra1 {[%clk 0:00:29]} 50. a5 {[%clk 0:00:02]}  Rxa5 {[%clk 0:00:29]} 51. Kd4 {[%clk 0:00:03]} 0-1


[Site "https://www.chess.com"]

[Event "Titled Tuesday Blitz June 29 2021"]
[White "Carnivoras"]
[Black "nrvisakh"]
[WhiteElo "2651"]
[BlackElo "2848"]
[Result "1/2-1/2"]
[Round "07"]
[TimeControl "180+1"]
[Date "2021.06.29"]
[WhiteClock "0:00:31"]
[BlackClock "0:01:00"]

1. d4 {[%clk 0:03:00]}  Nf6 {[%clk 0:02:45]} 2. c4 {[%clk 0:02:44]}  e6 {[%clk 0:02:44]} 3. Nc3 {[%clk 0:02:45]}  d5 {[%clk 0:02:40]} 4. cxd5 {[%clk 0:02:44]}  exd5 {[%clk 0:02:41]} 5. Bg5 {[%clk 0:02:43]}  Be7 {[%clk 0:02:41]} 6. e3 {[%clk 0:02:43]}  c6 {[%clk 0:02:40]} 7. Bd3 {[%clk 0:02:42]}  O-O {[%clk 0:02:39]} 8. Nge2 {[%clk 0:02:41]}  h6 {[%clk 0:02:38]} 9. Bh4 {[%clk 0:02:41]}  Re8 {[%clk 0:02:38]} 10. O-O {[%clk 0:02:41]}  Nbd7 {[%clk 0:02:32]} 11. Qc2 {[%clk 0:02:39]}  Nf8 {[%clk 0:02:31]} 12. f3 {[%clk 0:02:22]}  Nh5 {[%clk 0:02:29]} 13. Bf2 {[%clk 0:02:19]}  Bh4 {[%clk 0:02:29]} 14. Ng3 {[%clk 0:02:06]}  Nxg3 {[%clk 0:02:21]} 15. hxg3 {[%clk 0:02:07]}  Bf6 {[%clk 0:02:18]} 16. Rad1 {[%clk 0:02:03]}  h5 {[%clk 0:02:08]} 17. e4 {[%clk 0:01:37]}  h4 {[%clk 0:02:06]} 18. e5 {[%clk 0:01:35]}  hxg3 {[%clk 0:02:04]} 19. Bxg3 {[%clk 0:01:35]}  Bh4 {[%clk 0:01:50]} 20. Qf2 {[%clk 0:01:27]}  Bxg3 {[%clk 0:01:50]} 21. Qxg3 {[%clk 0:01:27]}  Ne6 {[%clk 0:01:51]} 22. Ne2 {[%clk 0:01:21]}  Qg5 {[%clk 0:01:49]} 23. Qh2 {[%clk 0:01:16]}  Qe3+ {[%clk 0:01:40]} 24. Kh1 {[%clk 0:01:15]}  Qh6 {[%clk 0:01:39]} 25. Qxh6 {[%clk 0:01:13]}  gxh6 {[%clk 0:01:40]} 26. f4 {[%clk 0:01:13]}  a5 {[%clk 0:01:32]} 27. f5 {[%clk 0:01:12]}  Ng5 {[%clk 0:01:31]} 28. Nf4 {[%clk 0:01:03]}  Rd8 {[%clk 0:01:29]} 29. g4 {[%clk 0:01:01]}  b6 {[%clk 0:01:28]} 30. Kg2 {[%clk 0:00:59]}  c5 {[%clk 0:01:26]} 31. Rh1 {[%clk 0:00:58]}  Kg7 {[%clk 0:01:19]} 32. f6+ {[%clk 0:00:51]}  Kf8 {[%clk 0:01:17]} 33. Rxh6 {[%clk 0:00:50]}  Ke8 {[%clk 0:01:17]} 34. Rh8+ {[%clk 0:00:45]}  Kd7 {[%clk 0:01:17]} 35. Bf5+ {[%clk 0:00:45]}  Kc7 {[%clk 0:01:15]} 36. Rxd8 {[%clk 0:00:44]}  Kxd8 {[%clk 0:01:15]} 37. dxc5 {[%clk 0:00:44]}  Bxf5 {[%clk 0:01:15]} 38. gxf5 {[%clk 0:00:41]}  bxc5 {[%clk 0:01:15]} 39. Rxd5+ {[%clk 0:00:41]}  Kc7 {[%clk 0:01:14]} 40. Rxc5+ {[%clk 0:00:42]}  Kb6 {[%clk 0:01:15]} 41. Rd5 {[%clk 0:00:39]}  Rg8 {[%clk 0:01:12]} 42. Kf2 {[%clk 0:00:36]}  Kc6 {[%clk 0:01:08]} 43. Rxa5 {[%clk 0:00:35]}  Rh8 {[%clk 0:01:06]} 44. b4 {[%clk 0:00:34]}  Rh2+ {[%clk 0:01:05]} 45. Ke3 {[%clk 0:00:32]}  Rb2 {[%clk 0:01:04]} 46. a3 {[%clk 0:00:32]}  Rb3+ {[%clk 0:01:03]} 47. Kd4 {[%clk 0:00:31]}  Nf3+ {[%clk 0:01:03]} 48. Kc4 {[%clk 0:00:31]}  Nd2+ {[%clk 0:01:03]} 49. Kd4 {[%clk 0:00:31]}  Nf3+ {[%clk 0:01:04]} 50. Ke4 {[%clk 0:00:31]}  Ng5+ {[%clk 0:01:00]} 51. Kd4 {[%clk 0:00:31]}  Nf3+ {[%clk 0:01:00]} 1/2-1/2


[Site "https://www.chess.com"]